fUST/lending_fUST_20240715
["ID","MTS","AMOUNT","RATE_DAILY","PERIOD"]
[332126409,1720977042613,-500.0,0.00024931,2]
[332126410,1720977042622,-500.0,0.00024931,2]
[332126411,1720977042632,-500.0,0.00024931,2]
[332126412,1720977042641,-500.0,0.00024931,2]
[332126413,1720977042651,-500.0,0.00024931,2]
[332126414,1720977042661,-248.22,0.00024931,2]
[332126415,1720977042671,-569.65,0.00024931,2]
[332126416,1720977042682,-479.63,0.00024931,2]
[332126418,1720977042692,-500.0,0.00024931,2]
[332126420,1720977042702,-500.0,0.00024931,2]
[332126422,1720977042711,-500.0,0.00024931,2]
[332126423,1720977042720,-500.0,0.00024931,2]
[332126424,1720977042730,-500.0,0.00024931,2]
[332126425,1720977042740,-500.0,0.00024931,2]
[332126426,1720977042749,-500.0,0.00024931,2]
[332126427,1720977042758,-500.0,0.00024931,2]
[332126428,1720977042768,-5946.23493808,0.00024931,2]
[332126430,1720977042787,-1073.94506192,0.00024931,2]
[332126432,1720977042797,-500.0,0.00024931,2]
[332126434,1720977042807,-500.0,0.00024931,2]
[332126436,1720977042816,-500.0,0.00024931,2]
[332126438,1720977042826,-500.0,0.00024931,2]
[332126440,1720977042835,-500.0,0.00024931,2]
[332126442,1720977042845,-500.0,0.00024931,2]
[332126444,1720977042855,-500.0,0.00024931,2]
[332126446,1720977042864,-1139.6,0.00024931,2]
[332126448,1720977042873,-500.0,0.00024931,4]
[332126450,1720977042887,-500.0,0.00024931,2]
[332126452,1720977042897,-500.0,0.00024931,2]
[332126454,1720977042907,-500.0,0.00024931,2]
[332126456,1720977042916,-442.54905362,0.00024931,2]
[332126463,1720977042989,-500.0,0.00024657,2]
[332126465,1720977042999,-369.43094638,0.00024931,2]
[332126467,1720977043009,-500.0,0.00024931,2]
[332126469,1720977043019,-590.36,0.00024931,2]
[332126471,1720977043028,-500.0,0.00024931,2]
[332126473,1720977043038,-150.112233,0.00025,2]
[332126475,1720977043048,-1000.0,0.00025,25]
[332126477,1720977043057,-1736.39400136,0.00025105,2]
[332126479,1720977043067,-16797.7490443,0.00025195,3]
[332126481,1720977043077,-150.112233,0.000252,8]
[332126483,1720977043086,-216.67984822,0.00025204,2]
[332126485,1720977043096,-500.0,0.00025204,2]
[332126487,1720977043108,-1500.0,0.00025205,2]
[332126489,1720977043118,-542.33,0.00025205,2]
[332126490,1720977043127,-500.0,0.00025205,2]
[332126492,1720977043137,-664.35,0.00025205,2]
[332126494,1720977043147,-500.0,0.00025205,2]
[332126496,1720977043156,-343.99824475,0.00025205,2]
[332126498,1720977043165,-500.0,0.00025205,2]
[332126500,1720977043175,-500.0,0.00025205,2]
[332126502,1720977043185,-500.0,0.00025205,2]
[332126504,1720977043194,-500.0,0.00025205,2]
[332126506,1720977043204,-500.0,0.00025205,2]
[332126508,1720977043213,-500.0,0.00025205,2]
[332126510,1720977043223,-500.0,0.00025205,2]
[332126512,1720977043233,-500.0,0.00025205,2]
[332126514,1720977043243,-500.0,0.00025205,2]
[332126516,1720977043253,-500.0,0.00025205,2]
[332126518,1720977043262,-500.0,0.00025205,2]
[332126520,1720977043272,-500.0,0.00025205,2]
[332126522,1720977043282,-500.0,0.00025205,2]
[332126524,1720977043291,-3272.31,0.00025205,2]
[332126526,1720977043300,-859.39,0.00025205,2]
[332126528,1720977043310,-500.0,0.00025205,2]
[332126530,1720977043319,-500.0,0.00025205,2]
[332126532,1720977043329,-244.03252253,0.00025205,2]
[332126534,1720977043339,-500.0,0.00025205,2]
[332126536,1720977043349,-500.0,0.00025205,2]
[332126537,1720977043359,-500.0,0.00025205,2]
[332126539,1720977043368,-500.0,0.00025205,2]
[332126541,1720977043378,-7020.18,0.00025205,2]
[332126543,1720977043389,-500.0,0.00025205,2]
[332126545,1720977043399,-500.0,0.00025205,2]
[332126547,1720977043409,-500.0,0.00025205,2]
[332126550,1720977043421,-1139.6,0.00025205,2]
[332126551,1720977043431,-500.0,0.00025205,4]
[332126553,1720977043443,-304.7,0.00025205,2]
[332126555,1720977043453,-811.98,0.00025205,2]
[332126558,1720977043463,-500.0,0.00025205,2]
[332126560,1720977043472,-590.36,0.00025205,2]
[332126563,1720977043481,-180.53,0.00025205,2]
[332126567,1720977043491,-153.0,0.00025397,2]
[332126569,1720977043501,-153.0,0.00025397,2]
[332126573,1720977043511,-153.0,0.00025397,2]
[332126575,1720977043521,-150.112233,0.000254,8]
[332126577,1720977043531,-500.0,0.00025478,2]
[332126579,1720977043540,-520.83755892,0.00025479,2]
[332126581,1720977043550,-542.33,0.00025479,2]
[332126583,1720977043560,-500.0,0.00025479,2]
[332126593,1720977043652,-664.35,0.00025479,2]
[332126595,1720977043663,-500.0,0.00025479,2]
[332126597,1720977043674,-500.0,0.00025479,2]
[332126599,1720977043684,-500.0,0.00025479,2]
[332126601,1720977043694,-500.0,0.00025479,2]
[332126603,1720977043704,-500.0,0.00025479,2]
[332126605,1720977043714,-500.0,0.00025479,2]
[332126607,1720977043724,-500.0,0.00025479,2]
[332126610,1720977043734,-500.0,0.00025479,2]
[332126612,1720977043744,-500.0,0.00025479,2]
[332126614,1720977043754,-3272.31,0.00025479,2]
[332126616,1720977043764,-859.39,0.00025479,2]
[332126618,1720977043773,-500.0,0.00025479,2]
[332126620,1720977043783,-225.13,0.00025479,2]
[332126622,1720977043793,-364.34,0.00025479,2]
[332126624,1720977043803,-500.0,0.00025479,2]
[332126626,1720977043812,-500.0,0.00025479,2]
[332126628,1720977043822,-7020.18,0.00025479,2]
[332126630,1720977043831,-500.0,0.00025479,2]
[332126632,1720977043841,-500.0,0.00025479,2]
[332126634,1720977043851,-500.0,0.00025479,2]
[332126636,1720977043861,-1139.6,0.00025479,2]
[332126638,1720977043871,-500.0,0.00025479,4]
[332126640,1720977043886,-811.98,0.00025479,2]
[332126642,1720977043904,-500.0,0.00025479,2]
[332126644,1720977043916,-590.36,0.00025479,2]
[332126646,1720977043931,-387.99395317,0.0002549,2]
[332126648,1720977043942,-16797.7490443,0.00025491,3]
[332126650,1720977043953,-2793.27737052,0.000255,2]
[332126685,1720977045322,-260.62534725,0.00025047,2]
[332126686,1720977045332,-1737.99465347,0.000255,2]
[332126687,1720977045341,-189.4315508,0.000255,2]
[332126688,1720977045352,-150.112233,0.000255,8]
[332126689,1720977045362,-151.0,0.00025501,7]
[332126690,1720977045371,-151.818003,0.00025501,7]
[332126691,1720977045380,-151.0,0.00025501,7]
[332126692,1720977045390,-382.33263115,0.00025501,2]
[332126771,1720977046497,-337.62032309,0.00025501,2]
[332126778,1720977046560,-29280.04704576,0.00025501,2]
[332126779,1720977046570,-150.183,0.0002553,2]
[332126781,1720977046579,-150.0,0.0002553,2]
[332126783,1720977046589,-289.426,0.0002553,2]
[332126785,1720977046599,-150.0,0.0002553,2]
[332126786,1720977046608,-150.0,0.0002553,2]
[332126788,1720977046618,-150.0,0.0002553,2]
[332126790,1720977046627,-503.0,0.0002553,2]
[332126791,1720977046637,-150.112233,0.000256,6]
[332126792,1720977046646,-1793.513,0.000257,2]
[332126793,1720977046655,-156.008579,0.00025736,2]
[332126794,1720977046665,-2058.01014225,0.00025742,5]
[332126795,1720977075489,205.14831297,0.00018,2]
[332126796,1720977392467,273.37336231,9.9e-05,2]
[332126797,1720977400436,273.37336231,9.9e-05,2]
[332126798,1720977409158,273.37336231,9.9e-05,2]
[332126799,1720977417238,273.37336231,9.9e-05,2]
[332126800,1720977425421,273.37336231,9.9e-05,2]
[332126802,1720977480869,812.60035042,9.9e-05,2]
[332126803,1720977490353,2249.64240333,9.9e-05,2]
[332126804,1720977494867,6990.73053784,0.00016255,2]
[332126805,1720977522330,2315.43532633,9.9e-05,2]
[332126806,1720977522360,12487.85378504,9.9e-05,2]
[332126808,1720977578257,3082.91011284,0.00014999,2]
[332126809,1720977589629,909.46908268,0.00014999,2]
[332126810,1720977591726,590.45069384,0.00015,2]
[332126812,1720977603575,567.33942329,0.00014999,2]
[332126813,1720977607270,993.30712187,0.00014999,2]
[332126814,1720977607591,910.78103442,0.00016255,4]
[332126815,1720977609730,1287.87828047,0.00015,2]
[332126816,1720977615360,935.81729399,0.00014999,2]
[332126817,1720977619495,525.89628869,0.00014999,2]
[332126818,1720977621285,532.67305812,0.00014999,2]
[332126819,1720977630449,1637.23767078,0.00014999,2]
[332126820,1720977640300,526.36205563,0.00014999,2]
[332126821,1720977650621,791.01829495,0.00014999,2]
[332126822,1720977657308,526.36205563,0.00014999,2]
[332126823,1720977669965,518.34284537,0.00014999,2]
[332126824,1720977681645,1500.0,0.00014999,2]
[332126825,1720977689362,154.94951165,0.00014999,2]
[332126826,1720977692099,215.83191418,0.00014999,2]
[332126827,1720977694772,208.08631229,0.00014999,2]
[332126828,1720977725123,361.47694168,0.00016255,7]
[332126829,1720977748381,1443.81042753,0.00014999,2]
[332126830,1720977773403,156.26255716,0.00014999,2]
[332126831,1720977793791,791.01829495,0.00014999,2]
[332126832,1720977797806,1798.84851072,0.00014999,2]
[332126834,1720977811115,979.94921801,0.00014999,2]
[332126835,1720977817489,1490.35835308,0.00014999,2]
[332126836,1720977855089,521.20465749,0.00014999,2]
[332126837,1720977866740,1287.49795197,0.00015,2]
[332126838,1720977868628,1500.0,0.00014999,2]
[332126839,1720977869857,993.00699843,0.00014999,2]
[332126840,1720977884460,1637.23767078,0.00014999,2]
[332126842,1720977937138,165.145537,0.00014999,2]
[332126843,1720977965353,540.58085513,0.00014999,2]
[332126844,1720977989807,155.62578204,0.00014999,2]
[332126845,1720978002647,270.44359447,0.00014999,2]
[332126846,1720978010246,524.1077099,0.00014999,2]
[332126847,1720978015296,236.22452928,0.00014999,2]
[332126848,1720978027141,-283.64066369,0.00016155,2]
[332126849,1720978031247,-109.13293665,0.00016155,2]
[332126850,1720978031272,-622.94556784,0.00016155,2]
[332126851,1720978034110,-208.08631229,0.00016155,2]
[332126853,1720978044311,155.45716296,0.00014999,2]
[332126854,1720978052091,-517.66762265,0.00016155,2]
[332126855,1720978052112,-49.40174935,0.00016255,2]
[332126856,1720978056471,652.99157113,0.00014999,2]
[332126857,1720978056669,156.28958,0.00014999,2]
[332126859,1720978108070,-365.33119004,0.00016384,2]
[332126860,1720978108101,-250.0,0.00016485,2]
[332126861,1720978108133,-76.36186102,0.0001653,2]
[332126862,1720978108168,-173.63813898,0.0001653,2]
[332126863,1720978108199,-250.0,0.00016575,2]
[332126864,1720978108229,-250.0,0.0001662,2]
[332126865,1720978108260,-18.05491208,0.00016665,2]
[332126866,1720978108308,-231.94508792,0.00016665,2]
[332126867,1720978108339,-250.0,0.00016711,2]
[332126868,1720978127067,4038.95701504,0.00015,2]
[332126872,1720978145135,-302.3111812,0.00016255,2]
[332126873,1720978145157,-250.0,0.00016756,2]
[332126874,1720978145178,-250.0,0.00016801,2]
[332126875,1720978145198,-250.0,0.00016846,2]
[332126876,1720978145220,-250.0,0.00016891,2]
[332126877,1720978145240,-250.0,0.00016937,2]
[332126878,1720978145262,-250.0,0.00016982,2]
[332126879,1720978145283,-250.0,0.00017027,2]
[332126880,1720978145303,-250.0,0.00017072,2]
[332126881,1720978145325,-250.0,0.00017117,2]
[332126882,1720978145346,-250.0,0.00017163,2]
[332126883,1720978145369,-250.0,0.00017208,2]
[332126884,1720978145391,-250.0,0.00017253,2]
[332126885,1720978145413,-250.0,0.00017298,2]
[332126886,1720978145435,-250.0,0.00017343,2]
[332126887,1720978145455,-250.0,0.000176,2]
[332126888,1720978145477,-1009.94611828,0.00017687,2]
[332126889,1720978145498,-300.0,0.00017701,2]
[332126890,1720978145519,-500.0,0.00017702,2]
[332126891,1720978145540,-298.30640096,0.00017702,2]
[332126892,1720978145566,-347.88509852,0.00017702,2]
[332126893,1720978145591,-524.55176065,0.00017702,2]
[332126894,1720978145615,-24867.821811,0.00017703,2]
[332126895,1720978145636,-11105.9373705,0.00017787,2]
[332126896,1720978145658,-163.576047,0.0001783,2]
[332126897,1720978145679,-264.33184422,0.00018,2]
[332126898,1720978151106,-156.3,0.00016255,2]
[332126899,1720978151127,-5825.64446974,0.00018,2]
[332126900,1720978151146,-287.51223328,0.0001818,2]
[332126901,1720978151167,-156.28958,0.0001818,2]
[332126902,1720978151188,-291.11124733,0.0001818,2]
[332126903,1720978151210,-126.51493995,0.00018304,2]
[332126904,1720978219523,250.0,0.00016255,2]
[332126933,1720978233048,-242.90786688,0.00016255,2]
[332126936,1720978233059,-163.576048,0.00018613,2]
[332126937,1720978233069,-139.39172084,0.00018798,2]
[332127417,1720978238349,-77.28812738,0.00018798,2]
[332127418,1720978238359,-150.0,0.000189,2]
[332127419,1720978238369,-185.9195673,0.000191,2]
[332127420,1720978238378,-162.93312,0.00019178,2]
[332127421,1720978238388,-166.313093,0.00019178,2]
[332127422,1720978238400,-560.48,0.0001999,3]
[332127423,1720978238409,-300.0,0.00019998,2]
[332127424,1720978238419,-20033.02420917,0.0002,2]
[332127425,1720978238428,-27159.39290318,0.0002,2]
[332127426,1720978238438,-1009.94611825,0.00020146,2]
[332127427,1720978238447,-712.5,0.00021096,2]
[332127428,1720978238456,-209.211759,0.00021096,2]
[332127429,1720978238466,-560.46,0.00021907,3]
[332127430,1720978238475,-154.76005712,0.00021917,2]
[332127431,1720978238485,-261.0,0.00021998,2]
[332127432,1720978238496,-187.58245065,0.00022186,2]
[332127434,1720978238506,-1009.94611825,0.00022605,2]
[332127435,1720978238516,-1436.57937401,0.00023966,2]
[332127437,1720978238525,-829.90406048,0.00023966,2]
[332127439,1720978238535,-1000.0,0.00024,24]
[332127441,1720978238545,-1183.64307375,0.0002446,3]
[332127442,1720978238554,-845.11491107,0.00024481,2]
[332127443,1720978238563,-1989.98473392,0.00024547,2]
[332127444,1720978238572,-1183.64307375,0.00024547,3]
[332127445,1720978238581,-500.0,0.00024556,2]
[332127447,1720978238590,-278.61853414,0.00024556,2]
[332127449,1720978238599,-500.0,0.00024556,2]
[332127451,1720978238609,-500.0,0.00024556,2]
[332127453,1720978238619,-199.99056912,0.00024556,2]
[332127454,1720978238629,-263.12768205,0.00024556,2]
[332127455,1720978238638,-500.0,0.00024556,2]
[332127457,1720978238648,-88888.0,0.00024557,3]
[332127459,1720978238657,-1430.41147216,0.00024557,2]
[332127460,1720978238668,-150.112233,0.000246,5]
[332127461,1720978238677,-2367.2861475,0.00024637,3]
[332127462,1720978238686,-7101.8584425,0.00024647,3]
[332127463,1720978238696,-502.39202574,0.00024657,2]
[332127464,1720978238705,-500.0,0.00024657,2]
[332127465,1720978238716,-500.0,0.00024657,2]
[332127466,1720978238726,-500.0,0.00024657,2]
[332127467,1720978238736,-500.0,0.00024657,2]
[332127468,1720978238842,-500.0,0.00024657,2]
[332127469,1720978238852,-500.0,0.00024657,2]
[332127470,1720978238861,-505.89779003,0.00024657,2]
[332127471,1720978238871,-500.0,0.00024657,2]
[332127472,1720978238880,-500.0,0.00024657,2]
[332127473,1720978238889,-501.2004926,0.00024657,2]
[332127474,1720978238898,-500.0,0.00024657,2]
[332127475,1720978238908,-500.0,0.00024657,2]
[332127476,1720978238917,-500.0,0.00024657,2]
[332127477,1720978238926,-228.8614272,0.00024657,2]
[332127478,1720978238935,-500.0,0.00024657,2]
[332127479,1720978238944,-500.0,0.00024657,2]
[332127480,1720978238954,-500.0,0.00024657,2]
[332127481,1720978238963,-500.0,0.00024657,2]
[332127482,1720978238972,-500.0,0.00024657,2]
[332127483,1720978238981,-500.0,0.00024657,2]
[332127484,1720978238990,-500.0,0.00024657,2]
[332127485,1720978239001,-500.0,0.00024657,2]
[332127486,1720978239011,-500.0,0.00024657,2]
[332127487,1720978239020,-500.0,0.00024657,2]
[332127488,1720978239030,-734.89,0.00024657,2]
[332127489,1720978239040,-500.0,0.00024657,2]
[332127490,1720978239051,-500.0,0.00024657,2]
[332127491,1720978239061,-500.0,0.00024657,2]
[332127492,1720978239071,-500.0,0.00024657,2]
[332127493,1720978239082,-500.0,0.00024657,2]
[332127494,1720978239091,-505.02961316,0.00024657,2]
[332127495,1720978239099,-500.0,0.00024657,2]
[332127496,1720978239108,-500.0,0.00024657,2]
[332127497,1720978239117,-500.0,0.00024657,2]
[332127498,1720978239126,-500.0,0.00024657,2]
[332127499,1720978239135,-500.0,0.00024657,2]
[332127500,1720978239145,-561.02961366,0.00024657,2]
[332127501,1720978239154,-500.0,0.00024657,2]
[332127502,1720978239163,-500.0,0.00024657,2]
[332127503,1720978239173,-500.0,0.00024657,2]
[332127504,1720978239182,-500.0,0.00024657,2]
[332127505,1720978239191,-392.59212818,0.00024657,2]
[332127506,1720978239200,-200.0,0.00024657,2]
[332127507,1720978239209,-500.0,0.00024657,2]
[332127508,1720978239219,-500.0,0.00024657,2]
[332127509,1720978239228,-500.0,0.00024657,2]
[332127510,1720978239237,-595.55475756,0.00024657,2]
[332127511,1720978239246,-500.0,0.00024657,2]
[332127512,1720978239255,-593.65268758,0.00024657,2]
[332127513,1720978239266,-500.0,0.00024657,2]
[332127514,1720978239275,-500.0,0.00024657,2]
[332127515,1720978239284,-500.0,0.00024657,2]
[332127516,1720978239293,-434.55535137,0.00024657,2]
[332127517,1720978239302,-500.0,0.00024657,2]
[332127518,1720978239311,-507.87182556,0.00024657,2]
[332127519,1720978239320,-500.0,0.00024657,2]
[332127520,1720978239329,-500.0,0.00024657,2]
[332127521,1720978239338,-500.0,0.00024657,2]
[332127522,1720978239350,-500.0,0.00024657,2]
[332127523,1720978239359,-500.0,0.00024657,2]
[332127524,1720978239369,-500.0,0.00024657,2]
[332127525,1720978239378,-496.83962333,0.00024657,2]
[332127526,1720978239392,-500.0,0.00024657,2]
[332127527,1720978239402,-500.0,0.00024657,2]
[332127528,1720978239411,-500.0,0.00024657,2]
[332127529,1720978239420,-500.0,0.00024657,2]
[332127530,1720978239431,-500.0,0.00024657,2]
[332127531,1720978239442,-500.0,0.00024657,2]
[332127532,1720978239452,-500.0,0.00024657,2]
[332127533,1720978239462,-500.0,0.00024657,2]
[332127534,1720978239472,-200.0,0.00024657,7]
[332127535,1720978239481,-569.58498182,0.00024657,2]
[332127536,1720978239490,-500.0,0.00024657,2]
[332127537,1720978239499,-500.0,0.00024657,2]
[332127538,1720978239508,-500.0,0.00024657,2]
[332127539,1720978239517,-504.62117378,0.00024657,2]
[332127540,1720978239526,-500.0,0.00024657,2]
[332127541,1720978239535,-500.0,0.00024657,2]
[332127542,1720978239545,-500.0,0.00024657,2]
[332127543,1720978239554,-500.0,0.00024657,2]
[332127544,1720978239564,-500.0,0.00024657,2]
[332127545,1720978239574,-287.558,0.00024657,2]
[332127546,1720978239583,-500.0,0.00024657,2]
[332127547,1720978239593,-506.5496359,0.00024657,2]
[332127548,1720978239602,-500.0,0.00024657,2]
[332127549,1720978239613,-500.0,0.00024657,2]
[332127550,1720978239624,-500.0,0.00024657,2]
[332127551,1720978239633,-500.0,0.00024657,2]
[332127552,1720978239643,-500.0,0.00024657,2]
[332127553,1720978239652,-500.0,0.00024657,2]
[332127554,1720978239661,-500.0,0.00024657,2]
[332127555,1720978239671,-500.0,0.00024657,2]
[332127556,1720978239682,-500.0,0.00024657,2]
[332127557,1720978239692,-500.0,0.00024657,2]
[332127558,1720978239702,-500.0,0.00024657,2]
[332127559,1720978239713,-500.0,0.00024657,2]
[332127560,1720978239723,-500.0,0.00024657,2]
[332127561,1720978239733,-500.0,0.00024657,2]
[332127562,1720978239742,-500.0,0.00024657,2]
[332127563,1720978239751,-500.0,0.00024657,2]
[332127564,1720978239760,-500.0,0.00024657,2]
[332127565,1720978239771,-500.0,0.00024657,2]
[332127566,1720978239780,-500.0,0.00024657,2]
[332127567,1720978239790,-500.0,0.00024657,2]
[332127568,1720978239800,-500.0,0.00024657,2]
[332127569,1720978239809,-500.0,0.00024657,2]
[332127570,1720978239820,-500.0,0.00024657,2]
[332127571,1720978239831,-500.0,0.00024657,2]
[332127572,1720978239841,-500.0,0.00024657,2]
[332127573,1720978239851,-500.0,0.00024657,2]
[332127574,1720978239862,-500.0,0.00024657,2]
[332127575,1720978239871,-500.0,0.00024657,2]
[332127576,1720978239881,-590.36,0.00024657,2]
[332127577,1720978239890,-500.0,0.00024657,2]
[332127578,1720978239899,-500.0,0.00024657,2]
[332127579,1720978239909,-500.0,0.00024657,2]
[332127581,1720978239918,-450.0,0.00024657,2]
[332127584,1720978239928,-500.0,0.00024657,2]
[332127587,1720978239937,-500.0,0.00024657,2]
[332127589,1720978239946,-500.0,0.00024657,2]
[332127592,1720978239955,-500.0,0.00024657,2]
[332127594,1720978239965,-320.97098709,0.00024657,2]
[332127595,1720978239974,-500.0,0.00024657,2]
[332127596,1720978239983,-502.64858833,0.00024657,2]
[332127598,1720978239992,-500.0,0.00024657,2]
[332127600,1720978240002,-500.0,0.00024657,2]
[332127601,1720978240012,-500.0,0.00024657,2]
[332127602,1720978240023,-500.0,0.00024657,2]
[332127603,1720978240032,-500.0,0.00024657,2]
[332127604,1720978240041,-500.0,0.00024657,2]
[332127605,1720978240053,-507.16661374,0.00024657,2]
[332127606,1720978240063,-500.0,0.00024657,2]
[332127607,1720978240073,-500.0,0.00024657,2]
[332127608,1720978240083,-500.0,0.00024657,2]
[332127609,1720978240093,-500.0,0.00024657,2]
[332127610,1720978240104,-500.0,0.00024657,2]
[332127611,1720978240115,-500.0,0.00024657,2]
[332127612,1720978240124,-500.0,0.00024657,2]
[332127613,1720978240133,-500.0,0.00024657,2]
[332127614,1720978240143,-500.0,0.00024657,2]
[332127615,1720978240153,-500.0,0.00024657,2]
[332127616,1720978240163,-500.0,0.00024657,2]
[332127617,1720978240173,-500.0,0.00024657,2]
[332127618,1720978240182,-500.0,0.00024657,2]
[332127620,1720978240191,-504.4662291,0.00024657,2]
[332127621,1720978240200,-500.0,0.00024657,2]
[332127623,1720978240209,-500.0,0.00024657,2]
[332127625,1720978240218,-507.93933676,0.00024657,2]
[332127627,1720978240227,-500.0,0.00024657,2]
[332127629,1720978240237,-500.0,0.00024657,2]
[332127631,1720978240246,-500.0,0.00024657,2]
[332127633,1720978240255,-500.0,0.00024657,2]
[332127635,1720978240264,-500.0,0.00024657,2]
[332127637,1720978240272,-500.0,0.00024657,2]
[332127639,1720978240282,-500.0,0.00024657,2]
[332127641,1720978240291,-500.0,0.00024657,2]
[332127643,1720978240300,-500.0,0.00024657,2]
[332127645,1720978240309,-500.0,0.00024657,2]
[332127647,1720978240318,-500.0,0.00024657,2]
[332127649,1720978240327,-523.03485607,0.00024657,2]
[332127651,1720978240336,-328.42450067,0.00024657,2]
[332127653,1720978240346,-555.50872868,0.00024657,2]
[332127655,1720978240355,-500.0,0.00024657,2]
[332127657,1720978240364,-500.0,0.00024657,2]
[332127659,1720978240373,-500.0,0.00024657,2]
[332127661,1720978240382,-507.62364398,0.00024657,2]
[332127663,1720978240394,-500.0,0.00024657,2]
[332127665,1720978240403,-500.0,0.00024657,2]
[332127667,1720978240414,-540.05567798,0.00024657,2]
[332127669,1720978240423,-500.0,0.00024657,2]
[332127671,1720978240432,-500.0,0.00024657,2]
[332127673,1720978240441,-500.0,0.00024657,2]
[332127675,1720978240450,-500.0,0.00024657,2]
[332127676,1720978240460,-500.0,0.00024657,2]
[332127678,1720978240469,-500.0,0.00024657,2]
[332127681,1720978240478,-500.0,0.00024657,2]
[332127683,1720978240488,-500.0,0.00024657,2]
[332127685,1720978240497,-500.0,0.00024657,2]
[332127686,1720978240506,-500.0,0.00024657,2]
[332127688,1720978240515,-500.0,0.00024657,2]
[332127690,1720978240525,-500.0,0.00024657,2]
[332127692,1720978240535,-1000.43223506,0.00024657,5]
[332127694,1720978240544,-500.0,0.00024657,2]
[332127696,1720978240553,-500.0,0.00024657,2]
[332127698,1720978240562,-500.0,0.00024657,2]
[332127700,1720978240571,-500.0,0.00024657,2]
[332127702,1720978240581,-500.0,0.00024657,2]
[332127704,1720978240591,-500.0,0.00024657,2]
[332127706,1720978240600,-500.0,0.00024657,2]
[332127708,1720978240609,-500.0,0.00024657,2]
[332127710,1720978240618,-502.78077326,0.00024657,2]
[332127712,1720978240628,-500.0,0.00024657,2]
[332127714,1720978240638,-500.0,0.00024657,2]
[332127716,1720978240648,-500.0,0.00024657,2]
[332127718,1720978240657,-500.0,0.00024657,2]
[332127719,1720978240669,-500.0,0.00024657,2]
[332127721,1720978240678,-500.0,0.00024657,2]
[332127723,1720978240687,-500.0,0.00024657,2]
[332127725,1720978240696,-500.0,0.00024657,2]
[332127727,1720978240705,-500.0,0.00024657,2]
[332127729,1720978240714,-500.0,0.00024657,2]
[332127731,1720978240723,-500.0,0.00024657,2]
[332127733,1720978240732,-509.34027352,0.00024657,2]
[332127735,1720978240742,-500.0,0.00024657,2]
[332127737,1720978240751,-500.0,0.00024657,2]
[332127739,1720978240760,-500.0,0.00024657,2]
[332127741,1720978240769,-500.0,0.00024657,2]
[332127743,1720978240779,-501.65633058,0.00024657,2]
[332127745,1720978240788,-500.0,0.00024657,2]
[332127747,1720978240797,-569.98932679,0.00024657,2]
[332127749,1720978240807,-500.0,0.00024657,2]
[332127751,1720978240816,-500.0,0.00024657,2]
[332127753,1720978240826,-500.0,0.00024657,2]
[332127755,1720978240835,-500.0,0.00024657,2]
[332127757,1720978240845,-500.0,0.00024657,2]
[332127759,1720978240855,-500.0,0.00024657,2]
[332127761,1720978240864,-500.0,0.00024657,2]
[332127763,1720978240873,-500.0,0.00024657,2]
[332127765,1720978240882,-500.0,0.00024657,2]
[332127767,1720978240894,-630.6,0.00024657,2]